[Event "Asian Amateur-ch Women 2022"]
[Site "Muscat"]
[Date "2022.10.02"]
[Round "5.6"]
[White "Shybi Binoj"]
[Black "Al Kalbani, Wadima"]
[Result "1-0"]
[ECO "C49"]
[WhiteElo "1402"]
[BlackElo "1554"]
[Annotator "NA RC COMBH"]
[PlyCount "45"]
[EventDate "2022.09.29"]
[EventType "swiss"]
[SourceTitle "playchess.com"]
[Source "ChessBase"]
[SourceQuality "1"]
[TimeControl "5400+30"]

1. e4 {[%emt 0:00:05]} e5 {[%emt 0:00:04]} 2. Nf3 {[%emt 0:00:05]} Nc6 {[%emt 0:00:03]} 3. Nc3 {[%emt 0:00:05]} Nf6 {[%emt 0:00:05]} 4. Bb5 {[%emt 0:00:10]} Bb4 {[%emt 0:00:06]} 5. d3 {[%emt 0:00:06]} Nd4 {[%emt 0:00:24]} 6. Bc4 {[%emt 0:00:29]} d5 {[%emt 0:00:12]} 7. exd5 {[%emt 0:01:22]} Bg4 {[%emt 0:00:35]} 8. Bg5 {[%emt 0:01:53]} h6 {[%emt 0:00:24]} 9. Bh4 {[%emt 0:01:05]} g5 {[%emt 0:33:08]} 10. Bg3 {[%emt 0:08:53]} Nxd5 {[%emt 0:00:30]} 11. Kd2 {[%emt 0:04:00]} e4 {[%emt 0:32:26]} 12. Re1 {[%emt 0:07:41]} Nxf3+ {[%emt 0:00:11]} 13. gxf3 {[%emt 0:01:02]} Bh5 {[%emt 0:02:19]} 14. Rxe4+ {[%emt 0:01:59]} Kf8 {[%emt 0:00:01]} 15. Bxd5 {[%emt 0:01:46]} Bxc3+ {[%emt 0:00:10]} 16. bxc3 {[%emt 0:00:11]} Qxd5 {[%emt 0:00:07]} 17. Qe2 {[%emt 0:00:56]} f5 {[%emt 0:07:00]} 18. Re5 {[%emt 0:02:36]} Qf7 {[%emt 0:01:22]} 19. h4 {[%emt 0:01:16]} f4 {[%emt 0:00:07]} 20. Bh2 {[%emt 0:00:18]} Re8 {[%emt 0:01:17]} 21. Re1 {[%emt 0:01:19]} Rxe5 {[%emt 0:06:25]} 22. Qxe5 {[%emt 0:00:25]} Rg8 {[%emt 0:00:14]} 23. Qc5+ {[%emt 0:00:38]} 1-0

[Event "Asian Amateur-ch Women 2022"]
[Site "Muscat"]
[Date "2022.10.02"]
[Round "5.7"]
[White "Aditi Arun"]
[Black "Abeysinghe, H M H Janandani"]
[Result "1/2-1/2"]
[ECO "B06"]
[WhiteElo "1160"]
[BlackElo "1546"]
[Annotator "NA RC COMBH"]
[PlyCount "99"]
[EventDate "2022.09.29"]
[EventType "swiss"]
[SourceTitle "playchess.com"]
[Source "ChessBase"]
[SourceQuality "1"]
[TimeControl "5400+30"]

1. d4 {[%emt 0:00:05]} g6 {[%emt 0:00:22]} 2. Bf4 {[%emt 0:00:10]} Bg7 {[%emt 0:00:06]} 3. e4 {[%emt 0:00:40]} d6 {[%emt 0:00:19]} 4. Nf3 {[%emt 0:01:32]} Nd7 {[%emt 0:00:36]} 5. Nc3 {[%emt 0:01:59]} a6 {[%emt 0:01:18]} 6. a4 {[%emt 0:02:05]} c5 {[%emt 0:01:10]} 7. d5 {[%emt 0:05:15]} Qb6 {[%emt 0:01:33]} 8. Ra2 {[%emt 0:03:41]} Ngf6 {[%emt 0:01:14]} 9. Bd3 {[%emt 0:02:36]} O-O {[%emt 0:01:35]} 10. O-O {[%emt 0:01:09]} Nh5 {[%emt 0:00:17]} 11. Be3 {[%emt 0:01:05]} Nhf6 {[%emt 0:05:07]} 12. Nd2 {[%emt 0:03:14]} Ne5 {[%emt 0:00:39]} 13. h3 {[%emt 0:02:30]} Nxd3 {[%emt 0:00:41]} 14. cxd3 {[%emt 0:00:10]} Bd7 {[%emt 0:01:53]} 15. Nc4 {[%emt 0:05:09]} Qc7 {[%emt 0:01:44]} 16. a5 {[%emt 0:01:30]} Bb5 {[%emt 0:02:50]} 17. Nb6 {[%emt 0:01:55]} Rab8 {[%emt 0:00:46]} 18. Nxb5 {[%emt 0:03:23]} axb5 {[%emt 0:00:07]} 19. Qb3 {[%emt 0:00:14]} b4 {[%emt 0:02:56]} 20. Rc1 {[%emt 0:03:02]} Qd8 {[%emt 0:00:31]} 21. d4 {[%emt 0:08:25]} cxd4 {[%emt 0:09:42]} 22. Bxd4 {[%emt 0:00:45]} Nxe4 {[%emt 0:00:10]} 23. Bxg7 {[%emt 0:51:26]} Kxg7 {[%emt 0:00:23]} 24. Qxb4 {[%emt 0:00:00]} Nc5 {[%emt 0:01:01]} 25. Qc3+ {[%emt 0:00:00]} Kg8 {[%emt 0:00:43]} 26. b4 {[%emt 0:00:00]} Nd7 {[%emt 0:00:22]} 27. Qc7 {[%emt 0:00:00]} Nxb6 {[%emt 0:01:43]} 28. Qxb6 {[%emt 0:00:00]} Qd7 {[%emt 0:03:34]} 29. Rc7 {[%emt 0:00:00]} Qf5 {[%emt 0:00:12]} 30. Re2 {[%emt 0:00:00]} Rbc8 {[%emt 0:07:41]} 31. Re1 {[%emt 0:00:00]} Rxc7 {[%emt 0:05:05]} 32. Qxc7 {[%emt 0:00:00]} Qxd5 {[%emt 0:00:13]} 33. Rxe7 {[%emt 0:00:00]} Qd1+ {[%emt 0:03:33]} 34. Kh2 {[%emt 0:00:00]} Qd2 {[%emt 0:00:14]} 35. Qxb7 {[%emt 0:00:00]} Qxf2 {[%emt 0:00:29]} 36. Qf3 {[%emt 0:00:00]} Qd2 {[%emt 0:01:10]} 37. a6 {[%emt 0:00:00]} Qxb4 {[%emt 0:01:24]} 38. a7 {[%emt 0:00:00]} Qa5 {[%emt 0:00:52]} 39. Rb7 {[%emt 0:00:00]} d5 {[%emt 0:00:52]} 40. Qf2 {[%emt 0:00:00]} Kg7 {[%emt 0:06:40]} 41. Qd4+ {[%emt 0:00:00]} Kg8 {[%emt 0:01:15]} 42. Qe5 {[%emt 0:00:00]} h5 {[%emt 0:05:41]} 43. Qb8 {[%emt 0:00:00]} d4 {[%emt 0:02:18]} 44. Qxf8+ {[%emt 0:00:00]} Kxf8 {[%emt 0:00:07]} 45. Rb8+ {[%emt 0:00:00]} Kg7 {[%emt 0:00:14]} 46. a8=Q {[%emt 0:00:00]} Qe5+ {[%emt 0:00:29]} 47. Kg1 {[%emt 0:00:00]} Qe1+ {[%emt 0:00:14]} 48. Kh2 {[%emt 0:00:00]} Qe5+ {[%emt 0:32:25]} 49. g3 {[%emt 0:13:00]} Qe2+ 50. Qg2 {[%emt 0:00:30]} 1/2-1/2

[Event "Asian Amateur-ch Women 2022"]
[Site "Muscat"]
[Date "2022.10.02"]
[Round "5.8"]
[White "Mouza Nasser AlShamsi"]
[Black "Dakshikaa S M"]
[Result "0-1"]
[ECO "C62"]
[WhiteElo "1117"]
[BlackElo "1117"]
[Annotator "NA RC COMBH"]
[PlyCount "52"]
[EventDate "2022.09.29"]
[EventType "swiss"]
[SourceTitle "playchess.com"]
[Source "ChessBase"]
[SourceQuality "1"]
[TimeControl "5400+30"]

1. e4 {[%emt 0:00:08]} e5 {[%emt 0:00:02]} 2. Nf3 {[%emt 0:00:08]} Nc6 {[%emt 0:00:09]} 3. Nc3 {[%emt 0:00:05]} Nf6 {[%emt 0:00:12]} 4. d4 {[%emt 0:00:06]} d6 {[%emt 0:02:07]} 5. Bb5 {[%emt 0:00:31]} Bd7 {[%emt 0:01:42]} 6. Bg5 {[%emt 0:00:56]} a6 {[%emt 0:05:18]} 7. Bxc6 {[%emt 0:01:01]} Bxc6 {[%emt 0:00:33]} 8. dxe5 {[%emt 0:00:32]} h6 {[%emt 0:03:25]} 9. Bxf6 {[%emt 0:05:02]} gxf6 {[%emt 0:00:06]} 10. exd6 {[%emt 0:01:06]} Bxd6 {[%emt 0:00:20]} 11. Qd3 {[%emt 0:05:31]} Qe7 {[%emt 0:06:09]} 12. Nd4 {[%emt 0:02:38]} Bd7 {[%emt 0:05:41]} 13. Nd5 {[%emt 0:02:34]} Qd8 {[%emt 0:00:38]} 14. O-O-O {[%emt 0:02:57]} c6 {[%emt 0:03:13]} 15. Nc3 {[%emt 0:00:31]} Qc7 {[%emt 0:09:40]} 16. Nf5 {[%emt 0:02:02]} Bxf5 {[%emt 0:00:26]} 17. exf5 {[%emt 0:00:08]} O-O-O {[%emt 0:00:35]} 18. Qf3 {[%emt 0:02:38]} Rhe8 {[%emt 0:10:45]} 19. Kb1 {[%emt 0:04:34]} Be5 {[%emt 0:03:10]} 20. Rhe1 {[%emt 0:07:58]} Bxc3 {[%emt 0:11:00]} 21. Qxc3 {[%emt 0:01:27]} Qf4 {[%emt 0:04:35]} 22. Qxf6 {[%emt 0:04:13]} Rxd1+ {[%emt 0:00:35]} 23. Rxd1 {[%emt 0:00:08]} Qd2 {[%emt 0:00:20]} 24. Rc1 {[%emt 0:02:35]} Re1 {[%emt 0:00:43]} 25. Qh8+ {[%emt 0:03:37]} Kc7 {[%emt 0:00:08]} 26. Rxe1 {[%emt 0:03:33]} Qxe1# {[%emt 0:00:04]} 0-1

[Event "Asian Amateur-ch Women 2022"]
[Site "Muscat"]
[Date "2022.10.03"]
[Round "6.1"]
[White "Wijesuriya, G P Y"]
[Black "Rouda Essa, Alserkal"]
[Result "0-1"]
[ECO "C92"]
[WhiteElo "1564"]
[BlackElo "1893"]
[Annotator "NA RC COMBH"]
[PlyCount "64"]
[EventDate "2022.09.29"]
[EventType "swiss"]
[SourceTitle "playchess.com"]
[Source "ChessBase"]
[SourceQuality "1"]
[TimeControl "5400+30"]

{[%evp 9,64,26,15,18,10,10,25,12,20,32767,32767,32767,32767,32767,32767,2,32767,10,18,17,32767,32,27,25,64,43,48,12,16,32767,32767,-45,32767,32767,-17,-79,32767,32767,7,32767,32767,-212,32767,-81,-90,32767,32767,-714,32767,-648,-708,32767,32767,32767,32767,-1422,-1103]} 1. e4 {[%emt 0:00:15]} e5 {[%emt 0:00:05]} 2. Nf3 {[%emt 0:00:04]} Nc6 {[%emt 0:00:04]} 3. Bb5 {[%emt 0:00:05]} a6 {[%emt 0:00:03]} 4. Ba4 {[%emt 0:00:04]} Nf6 {[%emt 0:00:05]} 5. O-O {[%emt 0:00:06]} Be7 {[%emt 0:00:01]} 6. d3 {[%emt 0:00:26]} b5 {[%emt 0:00:05]} 7. Bb3 {[%emt 0:00:04]} O-O {[%emt 0:00:31]} 8. c3 {[%emt 0:00:42]} d6 {[%emt 0:00:10]} 9. h3 {[%emt 0:00:05]} Na5 {[%emt 0:00:07]} 10. Bc2 {[%emt 0:00:06]} c5 {[%emt 0:00:03]} 11. Nbd2 {[%emt 0:00:11]} Re8 {[%emt 0:04:19]} 12. Re1 {[%emt 0:00:09]} Qc7 {[%emt 0:00:12]} 13. Nf1 {[%emt 0:01:58]} Bb7 {[%emt 0:00:38]} 14. Ng3 {[%emt 0:01:03]} h6 {[%emt 0:00:23]} 15. Nf5 {[%emt 0:00:34]} Bf8 {[%emt 0:00:05]} 16. Nh2 {[%emt 0:01:07]} Nc6 {[%emt 0:07:28]} (16... d5 $11) 17. Ng4 {[%emt 0:02:04]} Nh7 {[%emt 0:09:09]} 18. Re3 {[%emt 0:05:01]} (18. a4 $14) 18... Ne7 {[%emt 0:04:30]} 19. Rg3 {[%emt 0:20:18]} Kh8 {[%emt 0:02:26]} 20. Be3 {[%emt 0:15:53]} (20. Nxe7 $11 Qxe7 21. Qf3) 20... d5 {[%emt 0:12:32]} 21. Nxe7 {[%emt 0:05:45]} Bxe7 {[%emt 0:03:57]} 22. Qc1 {[%emt 0:15:50]} (22. Qf3 $1 $11 {keeps the balance.}) 22... c4 {[%emt 0:09:36]} 23. exd5 {[%emt 0:04:07]} Bh4 $1 {[%emt 0:04:47]} 24. Rf3 {[%emt 0:14:32]} cxd3 {[%emt 0:01:33]} 25. Bb3 {[%emt 0:01:30]} (25. Bxd3 $17 e4 26. Bxh6) 25... Ng5 {[%emt 0:04:19]} 26. Rf5 {[%emt 0:01:05]} Bc8 {[%emt 0:00:35]} 27. Nxh6 {[%emt 0:02:23]} gxh6 {[%emt 0:01:06]} 28. Rf6 $2 {[%emt 0:00:02]} (28. Rxg5 Bxg5 29. Bxg5 hxg5 30. Qxg5) 28... Nxh3+ {[%emt 0:00:30]} 29. gxh3 {[%emt 0:00:56]} Bxf6 {[%emt 0:00:11]} 30. Bxh6 {[%emt 0:00:29]} Rg8+ {[%emt 0:00:33]} 31. Kf1 {[%emt 0:00:21]} Bxh3+ {[%emt 0:00:16]} 32. Ke1 {[%emt 0:00:10]} Rg1+ $19 {[%emt 0:00:15]} 0-1

[Event "Asian Amateur-ch Women 2022"]
[Site "Muscat"]
[Date "2022.10.03"]
[Round "6.2"]
[White "Nadernia, Niki"]
[Black "Khalil, Hanan"]
[Result "1-0"]
[ECO "D11"]
[WhiteElo "1769"]
[BlackElo "1484"]
[Annotator "NA RC COMBH"]
[PlyCount "67"]
[EventDate "2022.09.29"]
[EventType "swiss"]
[SourceTitle "playchess.com"]
[Source "ChessBase"]
[SourceQuality "1"]
[TimeControl "5400+30"]

1. d4 {[%emt 0:00:06]} Nf6 {[%emt 0:00:04]} 2. Nf3 {[%emt 0:00:04]} d5 {[%emt 0:00:40]} 3. g3 {[%emt 0:00:06]} Bf5 {[%emt 0:00:08]} 4. Bg2 {[%emt 0:00:05]} e6 {[%emt 0:00:17]} 5. O-O {[%emt 0:00:06]} Be7 {[%emt 0:00:35]} 6. c4 {[%emt 0:01:01]} c6 {[%emt 0:01:12]} 7. Nc3 {[%emt 0:00:11]} h6 {[%emt 0:00:46]} 8. Nd2 {[%emt 0:04:09]} Bg4 {[%emt 0:18:05]} 9. f3 {[%emt 0:06:02]} Bh5 {[%emt 0:00:08]} 10. e4 {[%emt 0:03:12]} Qb6 {[%emt 0:07:36]} 11. c5 {[%emt 0:03:39]} Qb4 {[%emt 0:04:58]} 12. Nb3 {[%emt 0:10:35]} dxe4 {[%emt 0:03:08]} 13. g4 {[%emt 0:04:13]} exf3 {[%emt 0:00:30]} 14. Bxf3 {[%emt 0:00:05]} Bxg4 {[%emt 0:11:24]} 15. Bxg4 {[%emt 0:00:08]} Nxg4 {[%emt 0:00:02]} 16. Qxg4 {[%emt 0:00:11]} Nd7 {[%emt 0:00:55]} 17. Qf4 {[%emt 0:12:00]} Nf6 {[%emt 0:03:23]} 18. Qc7 {[%emt 0:05:31]} Bd8 {[%emt 0:08:05]} 19. Qg3 {[%emt 0:02:11]} a5 {[%emt 0:01:55]} 20. Qd3 {[%emt 0:01:52]} a4 {[%emt 0:03:57]} 21. Nd2 {[%emt 0:00:07]} b5 {[%emt 0:02:38]} 22. Nde4 {[%emt 0:02:09]} Bc7 {[%emt 0:05:04]} 23. a3 {[%emt 0:01:19]} Qa5 {[%emt 0:26:30]} 24. Bf4 {[%emt 0:00:33]} O-O-O {[%emt 0:00:00]} 25. Bxc7 {[%emt 0:01:50]} Qxc7 {[%emt 0:00:00]} 26. Nd6+ {[%emt 0:01:24]} Kb8 {[%emt 0:00:00]} 27. Nce4 {[%emt 0:00:20]} Rhg8 {[%emt 0:00:00]} 28. Kh1 {[%emt 0:01:50]} Qe7 {[%emt 0:00:00]} 29. Nxf6 {[%emt 0:00:55]} gxf6 {[%emt 0:00:00]} 30. Qf3 {[%emt 0:00:05]} Rxd6 {[%emt 0:00:00]} 31. cxd6 {[%emt 0:00:19]} Qxd6 {[%emt 0:00:00]} 32. Qxf6 {[%emt 0:01:07]} Qd5+ {[%emt 0:00:00]} 33. Qf3 {[%emt 0:00:49]} Qxd4 {[%emt 0:00:00]} 34. Qxc6 {[%emt 0:00:12]} 1-0

[Event "Asian Amateur-ch Women 2022"]
[Site "Muscat"]
[Date "2022.10.03"]
[Round "6.3"]
[White "Al Mansouri, Moza"]
[Black "Amulya Guruprasad"]
[Result "0-1"]
[ECO "C40"]
[WhiteElo "1610"]
[BlackElo "1278"]
[Annotator "NA RC COMBH"]
[PlyCount "82"]
[EventDate "2022.09.29"]
[EventType "swiss"]
[SourceTitle "playchess.com"]
[Source "ChessBase"]
[SourceQuality "1"]
[TimeControl "5400+30"]

1. e4 {[%emt 0:00:05]} e5 {[%emt 0:00:02]} 2. Nf3 {[%emt 0:00:05]} d5 {[%emt 0:00:03]} 3. Nxe5 {[%emt 0:04:15]} Bd6 {[%emt 0:02:16]} 4. d4 {[%emt 0:02:45]} dxe4 {[%emt 0:00:04]} 5. Nc4 {[%emt 0:02:56]} Nf6 {[%emt 0:01:10]} 6. Nxd6+ {[%emt 0:03:01]} cxd6 {[%emt 0:00:06]} 7. Nc3 {[%emt 0:01:18]} d5 {[%emt 0:03:46]} 8. Bf4 {[%emt 0:04:16]} Nc6 {[%emt 0:01:09]} 9. Be2 {[%emt 0:06:13]} Qb6 {[%emt 0:04:08]} 10. Nb5 {[%emt 0:04:38]} O-O {[%emt 0:00:19]} 11. Bd6 {[%emt 0:05:42]} Bd7 {[%emt 0:04:53]} 12. Bxf8 {[%emt 0:01:55]} Rxf8 {[%emt 0:00:08]} 13. O-O {[%emt 0:06:43]} a6 {[%emt 0:00:13]} 14. Nc3 {[%emt 0:00:36]} Qxb2 {[%emt 0:03:02]} 15. Qd2 {[%emt 0:01:43]} Qa3 {[%emt 0:03:46]} 16. Rfb1 {[%emt 0:02:59]} b5 {[%emt 0:00:37]} 17. Rb3 {[%emt 0:00:32]} Qd6 {[%emt 0:00:02]} 18. a4 {[%emt 0:04:00]} b4 {[%emt 0:01:45]} 19. Nd1 {[%emt 0:01:34]} a5 {[%emt 0:00:05]} 20. Ne3 {[%emt 0:05:44]} Ne8 {[%emt 0:11:53]} 21. c4 {[%emt 0:04:58]} Nc7 {[%emt 0:00:33]} 22. c5 {[%emt 0:01:13]} Qg6 {[%emt 0:00:56]} 23. Nc2 {[%emt 0:01:42]} f5 {[%emt 0:01:04]} 24. Rg3 {[%emt 0:00:31]} Qf6 {[%emt 0:01:40]} 25. Qg5 {[%emt 0:01:45]} Qxg5 {[%emt 0:04:17]} 26. Rxg5 {[%emt 0:00:05]} Ne6 {[%emt 0:00:03]} 27. Rg3 {[%emt 0:00:50]} Ncxd4 {[%emt 0:00:39]} 28. Nxd4 {[%emt 0:00:21]} Nxd4 {[%emt 0:00:01]} 29. Bb5 {[%emt 0:04:45]} Bxb5 {[%emt 0:05:29]} 30. axb5 {[%emt 0:00:03]} Rc8 {[%emt 0:00:03]} 31. c6 {[%emt 0:05:10]} Nxb5 {[%emt 0:00:14]} 32. Rxa5 {[%emt 0:00:13]} Rxc6 {[%emt 0:00:10]} 33. h3 {[%emt 0:00:35]} Rb6 {[%emt 0:08:52]} 34. Rb3 {[%emt 0:02:44]} Nc3 {[%emt 0:03:15]} 35. Rc5 {[%emt 0:00:38]} d4 {[%emt 0:00:36]} 36. Kf1 {[%emt 0:02:05]} Ra6 {[%emt 0:00:38]} 37. Rbxc3 {[%emt 0:02:24]} bxc3 {[%emt 0:00:27]} 38. Ke2 {[%emt 0:01:00]} Ra2+ {[%emt 0:00:10]} 39. Kd1 {[%emt 0:00:52]} Rxf2 {[%emt 0:00:18]} 40. Rc4 {[%emt 0:00:20]} d3 {[%emt 0:00:36]} 41. Rxc3 {[%emt 0:00:18]} Rxg2 {[%emt 0:00:04]} 0-1

[Event "Asian Amateur-ch Women 2022"]
[Site "Muscat"]
[Date "2022.10.03"]
[Round "6.4"]
[White "Dakshikaa S M"]
[Black "Shybi Binoj"]
[Result "0-1"]
[ECO "C54"]
[WhiteElo "1117"]
[BlackElo "1402"]
[Annotator "NA RC COMBH"]
[PlyCount "156"]
[EventDate "2022.09.29"]
[EventType "swiss"]
[SourceTitle "playchess.com"]
[Source "ChessBase"]
[SourceQuality "1"]
[TimeControl "5400+30"]

1. e4 {[%emt 0:00:04]} e5 {[%emt 0:03:59]} 2. Nf3 {[%emt 0:00:09]} Nc6 {[%emt 0:00:58]} 3. Bc4 {[%emt 0:00:12]} Bc5 {[%emt 0:00:29]} 4. c3 {[%emt 0:00:20]} Nf6 {[%emt 0:00:48]} 5. d4 {[%emt 0:00:39]} exd4 {[%emt 0:00:27]} 6. e5 {[%emt 0:00:08]} d5 {[%emt 0:00:27]} 7. Bb5 {[%emt 0:00:44]} Ne4 {[%emt 0:00:25]} 8. cxd4 {[%emt 0:01:03]} Bb4+ {[%emt 0:00:45]} 9. Nbd2 {[%emt 0:02:26]} O-O {[%emt 0:00:57]} 10. O-O {[%emt 0:03:58]} Bg4 {[%emt 0:01:03]} 11. h3 {[%emt 0:03:19]} Nxd2 {[%emt 0:02:32]} 12. Bxd2 {[%emt 0:01:01]} Bxf3 {[%emt 0:01:26]} 13. gxf3 {[%emt 0:00:08]} Bxd2 {[%emt 0:00:08]} 14. Qxd2 {[%emt 0:00:18]} Qh4 {[%emt 0:00:12]} 15. Bxc6 {[%emt 0:02:21]} bxc6 {[%emt 0:00:08]} 16. Kh2 {[%emt 0:01:08]} f6 {[%emt 0:01:17]} 17. e6 {[%emt 0:14:51]} Rae8 {[%emt 0:00:34]} 18. Qe3 {[%emt 0:02:40]} f5 {[%emt 0:01:48]} 19. f4 {[%emt 0:13:27]} Rf6 {[%emt 0:01:13]} 20. Qg3 {[%emt 0:09:20]} Qh6 {[%emt 0:01:38]} 21. Qg5 {[%emt 0:02:57]} Rexe6 {[%emt 0:01:12]} 22. Rae1 {[%emt 0:03:30]} Rxe1 {[%emt 0:02:25]} 23. Rxe1 {[%emt 0:00:04]} Kf7 {[%emt 0:00:58]} 24. Re5 {[%emt 0:02:46]} Qg6 {[%emt 0:01:35]} 25. h4 {[%emt 0:06:26]} h6 {[%emt 0:05:06]} 26. Qxg6+ {[%emt 0:02:10]} Rxg6 {[%emt 0:03:11]} 27. Rxf5+ {[%emt 0:00:31]} Ke7 {[%emt 0:04:26]} 28. Re5+ {[%emt 0:01:45]} Kd6 {[%emt 0:00:31]} 29. b4 {[%emt 0:07:06]} Rg4 {[%emt 0:01:30]} 30. Rf5 {[%emt 0:01:07]} Rxh4+ {[%emt 0:01:11]} 31. Kg2 {[%emt 0:00:23]} Rg4+ {[%emt 0:00:13]} 32. Kh2 {[%emt 0:00:16]} Ke6 {[%emt 0:01:20]} 33. Rf8 {[%emt 0:02:17]} Ke7 {[%emt 0:01:35]} 34. f3 {[%emt 0:03:22]} Rg6 {[%emt 0:00:49]} 35. Rf5 {[%emt 0:00:21]} Rf6 {[%emt 0:02:37]} 36. Re5+ {[%emt 0:01:26]} Kd7 {[%emt 0:00:51]} 37. Kg3 {[%emt 0:00:55]} Rg6+ {[%emt 0:01:03]} 38. Kh3 {[%emt 0:00:38]} Rg1 {[%emt 0:01:36]} 39. Rf5 {[%emt 0:04:36]} Ke7 {[%emt 0:00:44]} 40. Re5+ {[%emt 0:00:43]} Kf6 {[%emt 0:02:41]} 41. b5 {[%emt 0:03:08]} cxb5 {[%emt 0:02:43]} 42. Rxd5 {[%emt 0:00:17]} a6 {[%emt 0:02:36]} 43. Rc5 {[%emt 0:01:03]} Rd1 {[%emt 0:00:28]} 44. d5 {[%emt 0:01:15]} Rd2 {[%emt 0:00:53]} 45. Rxc7 {[%emt 0:02:29]} Rxd5 {[%emt 0:00:30]} 46. Kg4 {[%emt 0:00:58]} Rd6 {[%emt 0:01:07]} 47. Ra7 {[%emt 0:00:29]} g6 {[%emt 0:00:43]} 48. Ra8 {[%emt 0:01:06]} h5+ {[%emt 0:00:32]} 49. Kg3 {[%emt 0:00:28]} Kf5 {[%emt 0:00:11]} 50. Rf8+ {[%emt 0:01:19]} Rf6 {[%emt 0:00:14]} 51. Rh8 {[%emt 0:00:24]} Ke6 {[%emt 0:01:31]} 52. Ra8 {[%emt 0:01:08]} Kd5 {[%emt 0:00:16]} 53. Re8 {[%emt 0:00:38]} Kc4 {[%emt 0:00:43]} 54. Re4+ {[%emt 0:00:20]} Kc3 {[%emt 0:00:14]} 55. a4 {[%emt 0:00:34]} b4 {[%emt 0:00:20]} 56. Re3+ {[%emt 0:00:35]} Kb2 {[%emt 0:00:13]} 57. Re2+ {[%emt 0:00:34]} Ka3 {[%emt 0:00:08]} 58. a5 {[%emt 0:00:10]} b3 {[%emt 0:00:10]} 59. Re3 {[%emt 0:00:47]} Ka2 {[%emt 0:00:09]} 60. Re2+ {[%emt 0:00:06]} b2 {[%emt 0:00:45]} 61. Rd2 {[%emt 0:00:26]} Ka1 {[%emt 0:00:38]} 62. Rd1+ {[%emt 0:00:35]} b1=Q {[%emt 0:00:18]} 63. Rxb1+ {[%emt 0:00:03]} Kxb1 {[%emt 0:00:15]} 64. Kh4 {[%emt 0:00:25]} Rxf4+ {[%emt 0:00:32]} 65. Kg3 {[%emt 0:00:05]} Ra4 {[%emt 0:00:17]} 66. f4 {[%emt 0:00:21]} Rxa5 {[%emt 0:00:13]} 67. Kf3 {[%emt 0:00:18]} Rf5 {[%emt 0:00:15]} 68. Ke4 {[%emt 0:00:18]} a5 {[%emt 0:00:25]} 69. Kd4 {[%emt 0:00:21]} a4 {[%emt 0:00:12]} 70. Ke4 {[%emt 0:00:29]} a3 {[%emt 0:00:09]} 71. Kf3 {[%emt 0:00:16]} a2 {[%emt 0:00:16]} 72. Ke4 {[%emt 0:00:10]} a1=Q {[%emt 0:00:30]} 73. Kf3 {[%emt 0:00:14]} Qd4 {[%emt 0:00:24]} 74. Ke2 {[%emt 0:00:22]} Qe4+ {[%emt 0:00:22]} 75. Kd2 {[%emt 0:00:22]} Rd5+ {[%emt 0:00:08]} 76. Kc3 {[%emt 0:00:16]} Qd4+ {[%emt 0:00:06]} 77. Kb3 {[%emt 0:00:14]} Rb5+ {[%emt 0:00:10]} 78. Ka3 {[%emt 0:00:14]} Qb4# {[%emt 0:00:14]} 0-1

[Event "Asian Amateur-ch Women 2022"]
[Site "Muscat"]
[Date "2022.10.03"]
[Round "6.6"]
[White "Al-Khelaifi, Salama"]
[Black "Aditi Arun"]
[Result "1/2-1/2"]
[ECO "D01"]
[WhiteElo "1798"]
[BlackElo "1160"]
[Annotator "NA RC COMBH"]
[PlyCount "61"]
[EventDate "2022.09.29"]
[EventType "swiss"]
[SourceTitle "playchess.com"]
[Source "ChessBase"]
[SourceQuality "1"]
[TimeControl "5400+30"]

1. d4 {[%emt 0:00:08]} d5 {[%emt 0:00:05]} 2. Nc3 {[%emt 0:00:05]} Nf6 {[%emt 0:00:14]} 3. Bg5 {[%emt 0:00:06]} Nbd7 {[%emt 0:00:20]} 4. Qd3 {[%emt 0:00:31]} c6 {[%emt 0:00:34]} 5. f3 {[%emt 0:00:33]} h6 {[%emt 0:02:46]} 6. Bh4 {[%emt 0:01:30]} g5 {[%emt 0:02:10]} 7. Bg3 {[%emt 0:00:23]} Nb6 {[%emt 0:06:15]} 8. e4 {[%emt 0:08:37]} dxe4 {[%emt 0:05:00]} 9. fxe4 {[%emt 0:00:07]} Bg7 {[%emt 0:02:06]} 10. O-O-O {[%emt 0:01:11]} O-O {[%emt 0:02:01]} 11. h4 {[%emt 0:06:21]} g4 {[%emt 0:06:05]} 12. h5 {[%emt 0:03:37]} Be6 {[%emt 0:12:57]} 13. Qe3 {[%emt 0:06:23]} Nc4 {[%emt 0:03:26]} 14. Qf4 {[%emt 0:07:42]} Qb6 {[%emt 0:01:25]} 15. Bxc4 {[%emt 0:04:50]} Bxc4 {[%emt 0:00:04]} 16. Nge2 {[%emt 0:01:03]} Qa6 {[%emt 0:01:12]} 17. Qe3 {[%emt 0:55:53]} b5 {[%emt 0:03:21]} 18. b3 {[%emt 0:00:00]} b4 {[%emt 0:01:08]} 19. bxc4 {[%emt 0:00:00]} bxc3 {[%emt 0:00:04]} 20. Qxc3 {[%emt 0:00:00]} Nxe4 {[%emt 0:00:36]} 21. Qd3 {[%emt 0:00:00]} Nxg3 {[%emt 0:01:27]} 22. Nxg3 {[%emt 0:00:00]} Qxa2 {[%emt 0:00:14]} 23. Nf5 {[%emt 0:00:00]} e6 {[%emt 0:02:42]} 24. Nxg7 {[%emt 0:00:00]} Kxg7 {[%emt 0:00:41]} 25. Rh4 {[%emt 0:00:00]} f5 {[%emt 0:01:02]} 26. Rxg4+ {[%emt 0:00:00]} fxg4 {[%emt 0:02:00]} 27. Qg6+ {[%emt 0:00:00]} Kh8 {[%emt 0:00:12]} 28. Qxh6+ {[%emt 0:00:00]} Kg8 {[%emt 0:00:02]} 29. Qg6+ {[%emt 0:00:00]} Kh8 {[%emt 0:00:05]} 30. Qh6+ {[%emt 0:00:00]} Kg8 {[%emt 0:00:04]} 31. Qg6+ {[%emt 0:00:00]} 1/2-1/2